fUST/lending_fUST_20250525
["ID","MTS","AMOUNT","RATE_DAILY","PERIOD"]
[362267325,1748131839096,-430.0,0.00021917,2]
[362267328,1748131839105,-430.0,0.00021917,2]
[362267329,1748131839115,-295.4318861,0.00021917,2]
[362267331,1748131839124,-430.0,0.00021917,2]
[362267333,1748131839145,-430.0,0.00021917,2]
[362267335,1748131839154,-151.0,0.00021917,2]
[362267337,1748131839164,-196.719156,0.00021917,2]
[362267339,1748131839174,-549.08,0.00021917,2]
[362267341,1748131839184,-430.0,0.00021917,2]
[362267354,1748131839311,-118.57228469,0.00021917,2]
[362267443,1748131840826,-311.42771531,0.00021917,2]
[362267445,1748131840837,-305.76326926,0.00021917,2]
[362267447,1748131840848,-82.80901543,0.00021917,2]
[362267449,1748131840860,-347.19098457,0.00021917,2]
[362267451,1748131840869,-450.0,0.00021917,2]
[362267454,1748131840878,-281.82320883,0.00021917,2]
[362267779,1748131846680,-22.41798817,0.00021917,2]
[362267780,1748131846692,-304.241197,0.00021917,2]
[362267781,1748131846701,-304.241197,0.00021917,2]
[362267782,1748131846712,-304.241197,0.00021917,2]
[362267783,1748131846722,-304.241197,0.00021917,2]
[362267784,1748131846732,-304.241197,0.00021917,2]
[362267785,1748131846742,-304.241197,0.00021917,2]
[362267786,1748131846752,-304.241197,0.00021917,2]
[362267787,1748131846762,-430.0,0.00021917,2]
[362267788,1748131846771,-304.241197,0.00021917,2]
[362267789,1748131846783,-304.241197,0.00021917,2]
[362267790,1748131846792,-304.241197,0.00021917,2]
[362267791,1748131846802,-430.0,0.00021917,2]
[362267792,1748131846812,-304.241197,0.00021917,2]
[362267793,1748131846822,-304.241197,0.00021917,2]
[362267794,1748131846836,-304.241197,0.00021917,2]
[362267795,1748131846846,-304.241197,0.00021917,2]
[362267796,1748131846855,-304.241197,0.00021917,2]
[362267797,1748131846865,-304.241197,0.00021917,2]
[362267798,1748131846875,-304.241197,0.00021917,2]
[362267799,1748131846884,-304.241197,0.00021917,2]
[362267800,1748131846894,-304.241203,0.00021917,2]
[362267801,1748131846905,-430.0,0.00021917,2]
[362267802,1748131846914,-430.0,0.00021917,2]
[362267803,1748131846925,-430.0,0.00021917,2]
[362267804,1748131846935,-430.0,0.00021917,2]
[362267805,1748131846945,-430.0,0.00021917,2]
[362267806,1748131846955,-430.0,0.00021917,2]
[362267807,1748131846966,-430.0,0.00021917,2]
[362267808,1748131846976,-291.20886855,0.00021917,2]
[362267809,1748131846986,-430.0,0.00021917,2]
[362267810,1748131846996,-506.46,0.00021917,2]
[362267811,1748131847006,-430.0,0.00021917,2]
[362267812,1748131847015,-399.69257944,0.00021917,2]
[362267813,1748131847024,-430.0,0.00021917,2]
[362267814,1748131847034,-430.0,0.00021917,2]
[362267815,1748131847044,-430.0,0.00021917,2]
[362267816,1748131847054,-430.0,0.00021917,2]
[362267817,1748131847063,-430.0,0.00021917,2]
[362267818,1748131847073,-430.0,0.00021917,2]
[362267819,1748131847082,-430.0,0.00021917,2]
[362267820,1748131847092,-430.0,0.00021917,2]
[362267821,1748131847101,-430.0,0.00021917,2]
[362267822,1748131847111,-430.0,0.00021917,2]
[362267823,1748131847120,-430.0,0.00021917,2]
[362267824,1748131847130,-151.0,0.00021917,2]
[362267825,1748131847140,-151.0,0.00021917,2]
[362267826,1748131847154,-151.0,0.00021917,2]
[362267827,1748131847163,-151.0,0.00021917,2]
[362267828,1748131847173,-500.0,0.00021917,2]
[362267829,1748131847182,-430.0,0.00021917,2]
[362267830,1748131847193,-259.46,0.00021917,2]
[362267831,1748131847203,-430.0,0.00021917,2]
[362267832,1748131847214,-430.0,0.00021917,2]
[362267833,1748131847225,-430.0,0.00021917,2]
[362267834,1748131847235,-430.0,0.00021917,2]
[362267835,1748131847246,-181.62526477,0.00021917,2]
[362267836,1748131847256,-435.01,0.00021917,2]
[362267837,1748131847266,-430.0,0.00021917,2]
[362267838,1748131847276,-571.62868718,0.00021917,2]
[362267839,1748131847286,-430.0,0.00021917,2]
[362267840,1748131847295,-430.0,0.00021917,2]
[362267841,1748131847304,-430.0,0.00021917,2]
[362267842,1748131847314,-430.0,0.00021917,2]
[362267843,1748131847324,-450.0,0.00021917,2]
[362267844,1748131847333,-430.0,0.00021917,2]
[362267845,1748131847343,-430.0,0.00021917,2]
[362267846,1748131847352,-430.0,0.00021917,2]
[362267847,1748131847362,-151.0,0.00021917,2]
[362267848,1748131847371,-151.0,0.00021917,2]
[362267849,1748131847381,-151.0,0.00021917,2]
[362267850,1748131847390,-151.0,0.00021917,2]
[362267851,1748131847398,-151.0,0.00021917,2]
[362267852,1748131847407,-151.0,0.00021917,2]
[362267853,1748131847417,-151.0,0.00021917,2]
[362267854,1748131847426,-151.0,0.00021917,2]
[362267855,1748131847435,-151.0,0.00021917,2]
[362267856,1748131847445,-151.0,0.00021917,2]
[362267857,1748131847457,-151.0,0.00021917,2]
[362267858,1748131847466,-151.0,0.00021917,2]
[362267859,1748131847475,-151.0,0.00021917,2]
[362267860,1748131847485,-151.0,0.00021917,2]
[362267861,1748131847495,-292.854872,0.00021917,2]
[362267862,1748131847504,-430.0,0.00021917,2]
[362267863,1748131847513,-430.0,0.00021917,2]
[362267864,1748131847523,-430.0,0.00021917,2]
[362267865,1748131847532,-1414.39,0.00021917,2]
[362267866,1748131847541,-470.88658429,0.00021917,2]
[362267867,1748131847550,-827.75,0.00021917,2]
[362267868,1748131847559,-263.16937518,0.00021917,2]
[362267869,1748131847568,-430.0,0.00021917,2]
[362267870,1748131847578,-430.0,0.00021917,2]
[362267871,1748131847588,-430.0,0.00021917,2]
[362267872,1748131847597,-430.0,0.00021917,2]
[362267873,1748131847607,-1185.56,0.00021917,2]
[362267874,1748131847615,-430.0,0.00021917,2]
[362267875,1748131847626,-430.0,0.00021917,2]
[362267876,1748131847636,-324.40585733,0.00021917,2]
[362267877,1748131847647,-430.0,0.00021917,2]
[362267878,1748131847657,-430.0,0.00021917,2]
[362267879,1748131847667,-545.9,0.00021917,2]
[362267880,1748131847676,-430.0,0.00021917,2]
[362267881,1748131847685,-430.0,0.00021917,2]
[362267882,1748131847695,-709.94,0.00021917,2]
[362267883,1748131847704,-494.87,0.00021917,2]
[362267884,1748131847714,-430.0,0.00021917,2]
[362267885,1748131847723,-430.0,0.00021917,2]
[362267886,1748131847733,-151.0,0.00021917,2]
[362267887,1748131847742,-430.0,0.00021917,2]
[362267888,1748131847752,-151.0,0.00021917,2]
[362267889,1748131847763,-151.0,0.00021917,2]
[362267890,1748131847774,-300.317306,0.00021917,2]
[362267891,1748131847784,-430.0,0.00021917,2]
[362267892,1748131847795,-151.0,0.00021917,2]
[362267893,1748131847806,-515.16,0.00021917,2]
[362267894,1748131847815,-430.0,0.00021917,2]
[362267895,1748131847825,-159.714338,0.00021917,2]
[362267896,1748131847835,-159.714338,0.00021917,2]
[362267897,1748131847846,-430.0,0.00021917,2]
[362267898,1748131847857,-159.714338,0.00021917,2]
[362267899,1748131847867,-159.714338,0.00021917,2]
[362267900,1748131847998,-159.714338,0.00021917,2]
[362267901,1748131848008,-159.714338,0.00021917,2]
[362267902,1748131848018,-159.714338,0.00021917,2]
[362267903,1748131848029,-159.714338,0.00021917,2]
[362267904,1748131848039,-159.714338,0.00021917,2]
[362267905,1748131848049,-159.714338,0.00021917,2]
[362267906,1748131848059,-159.714338,0.00021917,2]
[362267907,1748131848069,-159.714338,0.00021917,2]
[362267908,1748131848078,-159.714338,0.00021917,2]
[362267909,1748131848088,-430.0,0.00021917,2]
[362267910,1748131848099,-159.714338,0.00021917,2]
[362267911,1748131848109,-159.714338,0.00021917,2]
[362267912,1748131848118,-159.714338,0.00021917,2]
[362267913,1748131848128,-159.714338,0.00021917,2]
[362267914,1748131848138,-159.714338,0.00021917,2]
[362267915,1748131848151,-159.714338,0.00021917,2]
[362267916,1748131848160,-159.714334,0.00021917,2]
[362267917,1748131848170,-430.0,0.00021917,2]
[362267918,1748131848180,-641.47,0.00021917,2]
[362267919,1748131848190,-151.0,0.00021917,2]
[362267920,1748131848200,-151.0,0.00021917,2]
[362267921,1748131848210,-151.0,0.00021917,2]
[362267922,1748131848219,-151.0,0.00021917,2]
[362267923,1748131848229,-159.796776,0.00021917,2]
[362267924,1748131848239,-437.01576669,0.00021917,2]
[362267925,1748131848248,-430.0,0.00021917,2]
[362267926,1748131848258,-430.0,0.00021917,2]
[362267927,1748131848267,-64.26534204,0.00021917,2]
[362267959,1748132964590,161.587222,0.00013699,2]
[362267983,1748133032647,-833.77642576,0.000189,2]
[362267985,1748133032657,-8039.1900992,0.00020938,2]
[362267987,1748133032667,-1025.993081,0.00021478,2]
[362267988,1748133032677,-250.0,0.00021737,2]
[362267989,1748133032687,-151.0,0.000219,2]
[362267990,1748133032697,-151.0,0.000219,2]
[362267991,1748133032706,-207.4,0.00021904,2]
[362267992,1748133032716,-153.037,0.00021916,2]
[362267993,1748133032726,-300.0,0.00021916,2]
[362267994,1748133032735,-151.0,0.00021917,2]
[362267995,1748133032744,-151.0,0.00021917,2]
[362267996,1748133032754,-151.0,0.00021917,2]
[362267997,1748133032763,-151.0,0.00021917,2]
[362267998,1748133032772,-25.70833882,0.00021917,2]
[362268045,1748133038600,-300.0,0.00021916,2]
[362268048,1748133038753,-125.29166118,0.00021917,2]
[362268050,1748133038763,-164.833011,0.00021917,2]
[362268052,1748133038773,-151.0,0.00021917,2]
[362268054,1748133038783,-157.5,0.00021917,2]
[362268056,1748133038793,-157.5,0.00021917,2]
[362268058,1748133038802,-151.0,0.00021917,2]
[362268060,1748133038812,-184.710164,0.00021917,2]
[362268062,1748133038822,-430.0,0.00021917,2]
[362268064,1748133038831,-151.0,0.00021917,2]
[362268066,1748133038840,-151.0,0.00021917,2]
[362268068,1748133038850,-151.0,0.00021917,2]
[362268070,1748133038860,-490.0,0.00021917,2]
[362268072,1748133038870,-151.0,0.00021917,2]
[362268074,1748133038880,-430.0,0.00021917,2]
[362268076,1748133038889,-430.0,0.00021917,2]
[362268078,1748133038899,-430.0,0.00021917,2]
[362268080,1748133038909,-430.0,0.00021917,2]
[362268082,1748133038920,-430.0,0.00021917,2]
[362268084,1748133038930,-430.0,0.00021917,2]
[362268086,1748133038939,-221.440995,0.00021917,2]
[362268088,1748133038948,-430.0,0.00021917,2]
[362268090,1748133038959,-430.0,0.00021917,2]
[362268092,1748133038969,-430.0,0.00021917,2]
[362268094,1748133038978,-430.0,0.00021917,2]
[362268096,1748133038988,-430.0,0.00021917,2]
[362268098,1748133038999,-430.0,0.00021917,2]
[362268100,1748133039008,-71.65553646,0.00021917,2]
[362268103,1748133039021,-79.34446354,0.00021917,2]
[362268105,1748133039031,-250.0,0.00021917,2]
[362268107,1748133039040,-285.70721057,0.00021917,2]
[362268611,1748133046785,-65.67837533,0.00021917,2]
[362268612,1748133046797,-430.0,0.00021917,2]
[362268613,1748133046807,-151.0,0.00021917,2]
[362268614,1748133046820,-151.0,0.00021917,2]
[362268615,1748133046831,-450.0,0.00021917,2]
[362268616,1748133046842,-245.74391925,0.00021917,2]
[362268617,1748133046854,-638.488729,0.00021917,2]
[362268618,1748133046866,-638.488729,0.00021917,2]
[362268619,1748133046875,-200.0,0.00021917,2]
[362268620,1748133046884,-638.488729,0.00021917,2]
[362268621,1748133046894,-638.488729,0.00021917,2]
[362268622,1748133046904,-430.0,0.00021917,2]
[362268623,1748133046916,-401.43858407,0.00021917,2]
[362268624,1748133046927,-430.0,0.00021917,2]
[362268625,1748133046937,-450.0,0.00021917,2]
[362268626,1748133046950,-202.882481,0.00021917,2]
[362268627,1748133046960,-200.97609521,0.00021917,2]
[362268628,1748133046973,-202.882481,0.00021917,2]
[362268629,1748133046984,-202.882481,0.00021917,2]
[362268630,1748133046993,-202.882481,0.00021917,2]
[362268631,1748133047002,-450.0,0.00021917,2]
[362268632,1748133047012,-430.0,0.00021917,2]
[362268633,1748133047021,-500.0,0.00021917,2]
[362268634,1748133047031,-430.0,0.00021917,2]
[362268635,1748133047040,-151.0,0.00021917,2]
[362268636,1748133047051,-151.0,0.00021917,2]
[362268637,1748133047060,-430.0,0.00021917,2]
[362268638,1748133047069,-430.0,0.00021917,2]
[362268639,1748133047079,-430.0,0.00021917,2]
[362268640,1748133047088,-430.0,0.00021917,2]
[362268641,1748133047097,-430.0,0.00021917,2]
[362268642,1748133047106,-430.0,0.00021917,2]
[362268643,1748133047117,-430.0,0.00021917,2]
[362268644,1748133047126,-188.0,0.00021917,2]
[362268645,1748133047135,-87.42675535,0.00021917,2]
[362268647,1748133303788,-204.80332051,0.000179,2]
[362268648,1748133309894,-472.97297658,0.000179,2]
[362268657,1748134076175,162.680025,0.00013699,2]
[362268680,1748134231812,-574.00416421,0.000189,2]
[362268682,1748134231821,-153.30079674,0.00020725,2]
[362268683,1748134231830,-300.0,0.00020825,2]
[362268685,1748134231841,-300.0,0.00020825,2]
[362268687,1748134231855,-300.0,0.00020825,2]
[362268689,1748134231864,-1200.0,0.00020825,2]
[362268691,1748134231874,-24900.0,0.00020826,2]
[362268693,1748134231884,-253.725246,0.00020871,2]
[362268696,1748134231893,-673.1795953,0.00020913,2]
[362268716,1748134232055,-153.30079669,0.00020943,2]
[362268718,1748134232065,-153.30079669,0.00021162,2]
[362268720,1748134232074,-153.30079669,0.0002138,2]
[362268721,1748134232084,-923.393773,0.00021478,2]
[362268723,1748134232093,-153.30079669,0.00021599,2]
[362268725,1748134232103,-153.0,0.00021652,2]
[362268727,1748134232112,-153.0,0.00021753,2]
[362268729,1748134232121,-153.0,0.00021753,2]
[362268731,1748134232130,-153.0,0.00021753,2]
[362268732,1748134232139,-240.91842803,0.00021754,2]
[362268734,1748134232149,-153.30079669,0.00021817,2]
[362268736,1748134232158,-207.4,0.00021904,2]
[362268738,1748134232167,-32168.51307678,0.00021913,3]
[362268740,1748134232177,-500.0,0.00021914,2]
[362268742,1748134232186,-220.32195871,0.00021914,2]
[362268744,1748134232195,-500.0,0.00021914,2]
[362268746,1748134232204,-152.4554076,0.00021914,2]
[362268748,1748134232213,-500.0,0.00021914,2]
[362268749,1748134232223,-500.0,0.00021914,2]
[362268751,1748134232232,-500.0,0.00021914,2]
[362268753,1748134232241,-500.0,0.00021914,2]
[362268755,1748134232251,-500.0,0.00021914,2]
[362268757,1748134232260,-500.0,0.00021914,2]
[362268759,1748134232269,-593.6765923,0.00021914,2]
[362268761,1748134232278,-621.72635355,0.00021914,2]
[362268763,1748134232288,-500.0,0.00021914,2]
[362268765,1748134232297,-500.0,0.00021914,2]
[362268766,1748134232308,-500.0,0.00021914,2]
[362268768,1748134232317,-500.0,0.00021914,2]
[362268770,1748134232326,-500.0,0.00021914,2]
[362268772,1748134232335,-500.0,0.00021914,2]
[362268774,1748134232345,-500.0,0.00021914,2]
[362268776,1748134232355,-420.83443224,0.00021914,2]
[362268778,1748134232364,-300.0,0.00021914,2]
[362268779,1748134232373,-153.037,0.00021916,2]
[362268781,1748134232383,-151.0,0.00021917,2]
[362268783,1748134232392,-151.0,0.00021917,2]
[362268785,1748134232401,-151.0,0.00021917,2]
[362268787,1748134232410,-151.0,0.00021917,2]
[362268789,1748134232420,-151.0,0.00021917,2]
[362268791,1748134232433,-151.0,0.00021917,2]
[362268793,1748134232442,-151.0,0.00021917,2]
[362268795,1748134232451,-235.478144,0.00021917,2]
[362268797,1748134232461,-430.0,0.00021917,2]
[362268799,1748134232470,-430.0,0.00021917,2]
[362268801,1748134232479,-430.0,0.00021917,2]
[362268804,1748134232488,-195.33,0.00021917,2]
[362268807,1748134232497,-301.28792562,0.00021917,2]
[362268810,1748134232507,-430.0,0.00021917,2]
[362268813,1748134232517,-151.0,0.00021917,2]
[362268816,1748134232526,-450.0,0.00021917,2]
[362268819,1748134232536,-158.838772,0.00021917,2]
[362268822,1748134232545,-500.0,0.00021917,2]
[362268824,1748134232557,-192.66632329,0.00021917,2]
[362268825,1748134232566,-430.0,0.00021917,2]
[362268826,1748134232575,-500.0,0.00021917,2]
[362268827,1748134232585,-218.44248677,0.00021917,2]
[362268828,1748134232594,-430.0,0.00021917,2]
[362268829,1748134232603,-523.01642207,0.00021917,2]
[362268830,1748134232613,-430.0,0.00021917,2]
[362268831,1748134232622,-430.0,0.00021917,2]
[362268832,1748134232631,-400.0,0.00021917,2]
[362268833,1748134232640,-162.305984,0.00021917,2]
[362268834,1748134232649,-430.0,0.00021917,2]
[362268835,1748134232658,-162.305984,0.00021917,2]
[362268836,1748134232667,-430.0,0.00021917,2]
[362268837,1748134232677,-430.0,0.00021917,2]
[362268838,1748134232686,-400.0,0.00021917,2]
[362268839,1748134232695,-405.97175513,0.00021917,2]
[362268840,1748134232704,-151.0,0.00021917,2]
[362268841,1748134232713,-151.0,0.00021917,2]
[362268842,1748134232722,-430.0,0.00021917,2]
[362268843,1748134232731,-450.0,0.00021917,2]
[362268844,1748134232741,-430.0,0.00021917,2]
[362268845,1748134232750,-430.0,0.00021917,2]
[362268846,1748134232759,-430.0,0.00021917,2]
[362268847,1748134232768,-430.0,0.00021917,2]
[362268848,1748134232778,-430.0,0.00021917,2]
[362268849,1748134232787,-500.0,0.00021917,2]
[362268850,1748134232796,-430.0,0.00021917,2]
[362268851,1748134232806,-430.0,0.00021917,2]
[362268852,1748134232815,-430.0,0.00021917,2]
[362268853,1748134232824,-430.0,0.00021917,2]
[362268854,1748134232833,-430.0,0.00021917,2]
[362268855,1748134232842,-430.0,0.00021917,2]
[362268856,1748134232851,-430.0,0.00021917,2]
[362268857,1748134232860,-550.08686581,0.00021917,2]
[362268858,1748134232870,-430.0,0.00021917,2]
[362268859,1748134232879,-400.49518034,0.00021917,2]
[362268860,1748134232889,-332.38449032,0.00021917,2]
[362268861,1748134232898,-256.89,0.00021917,2]
[362268862,1748134232907,-201.77,0.00021917,2]
[362268863,1748134232917,-430.0,0.00021917,2]
[362268865,1748134232927,-430.0,0.00021917,2]
[362268866,1748134232936,-432.24674302,0.00021917,2]
[362268868,1748134232945,-430.0,0.00021917,2]
[362268870,1748134232954,-430.0,0.00021917,2]
[362268872,1748134232964,-433.93,0.00021917,2]
[362268874,1748134232977,-430.0,0.00021917,2]
[362268876,1748134232986,-1026.27,0.00021917,2]
[362268878,1748134232995,-430.0,0.00021917,2]
[362268880,1748134233005,-1395.84,0.00021917,2]
[362268882,1748134233014,-430.0,0.00021917,2]
[362268884,1748134233023,-430.0,0.00021917,2]
[362268886,1748134233032,-430.0,0.00021917,2]
[362268888,1748134233042,-430.0,0.00021917,2]
[362268890,1748134233052,-430.0,0.00021917,2]
[362268892,1748134233062,-811.18,0.00021917,2]
[362268894,1748134233071,-430.0,0.00021917,2]
[362268896,1748134233081,-430.0,0.00021917,2]
[362268898,1748134233090,-430.0,0.00021917,2]
[362268900,1748134233099,-541.07,0.00021917,2]
[362268902,1748134233108,-430.0,0.00021917,2]
[362268904,1748134233117,-430.0,0.00021917,2]
[362268906,1748134233126,-430.0,0.00021917,2]
[362268908,1748134233136,-1155.08,0.00021917,2]
[362268909,1748134233145,-430.0,0.00021917,2]
[362268912,1748134233155,-151.0,0.00021917,2]
[362268913,1748134233164,-430.0,0.00021917,2]
[362268916,1748134233178,-430.0,0.00021917,2]
[362268917,1748134233187,-151.0,0.00021917,2]
[362268919,1748134233196,-430.0,0.00021917,2]
[362268922,1748134233206,-430.0,0.00021917,2]
[362268924,1748134233216,-430.0,0.00021917,2]
[362268926,1748134233225,-430.0,0.00021917,2]
[362268928,1748134233235,-430.0,0.00021917,2]
[362268930,1748134233244,-520.97,0.00021917,2]
[362268932,1748134233253,-430.0,0.00021917,2]
[362268934,1748134233263,-698.28,0.00021917,2]
[362268936,1748134233272,-370.0,0.00021917,2]
[362268938,1748134233282,-430.0,0.00021917,2]
[362268940,1748134233291,-430.0,0.00021917,2]
[362268942,1748134233300,-430.0,0.00021917,2]
[362268944,1748134233310,-430.0,0.00021917,2]
[362268946,1748134233319,-430.0,0.00021917,2]
[362268948,1748134233329,-430.0,0.00021917,2]
[362268950,1748134233338,-430.0,0.00021917,2]
[362268952,1748134233348,-474.25,0.00021917,2]
[362268954,1748134233358,-430.0,0.00021917,2]
[362268956,1748134233367,-430.0,0.00021917,2]
[362268958,1748134233377,-430.0,0.00021917,2]
[362268960,1748134233386,-430.0,0.00021917,2]
[362268962,1748134233396,-430.0,0.00021917,2]
[362268964,1748134233404,-430.0,0.00021917,2]
[362268966,1748134233414,-450.58533415,0.00021917,2]
[362268968,1748134233424,-445.64,0.00021917,2]
[362268970,1748134233435,-459.68,0.00021917,2]
[362268972,1748134233444,-430.0,0.00021917,2]
[362268974,1748134233453,-430.0,0.00021917,2]
[362268976,1748134233463,-1173.77,0.00021917,2]
[362268978,1748134233472,-430.0,0.00021917,2]
[362268980,1748134233481,-430.0,0.00021917,2]
[362268982,1748134233490,-430.0,0.00021917,2]
[362268983,1748134233500,-2260.16,0.00021917,2]
[362268986,1748134233509,-151.0,0.00021917,2]
[362268988,1748134233519,-151.0,0.00021917,2]
[362268990,1748134233528,-151.0,0.00021917,2]
[362268991,1748134233538,-510.790983,0.00021917,2]
[362268993,1748134233548,-510.790983,0.00021917,2]
[362268995,1748134233557,-510.790983,0.00021917,2]
[362268997,1748134233566,-430.0,0.00021917,2]
[362268999,1748134233576,-510.790983,0.00021917,2]
[362269001,1748134233585,-510.790983,0.00021917,2]
[362269003,1748134233595,-510.790983,0.00021917,2]
[362269005,1748134233604,-614.74,0.00021917,2]
[362269007,1748134233614,-430.0,0.00021917,2]
[362269008,1748134233623,-1216.17,0.00021917,2]
[362269010,1748134233632,-430.0,0.00021917,2]
[362269012,1748134233642,-430.0,0.00021917,2]
[362269015,1748134233652,-2681.37,0.00021917,2]
[362269017,1748134233661,-470.0,0.00021917,2]
[362269018,1748134233670,-579.79,0.00021917,2]
[362269020,1748134233680,-430.0,0.00021917,2]
[362269022,1748134233689,-1850.94,0.00021917,2]
[362269024,1748134233699,-406.39747164,0.00021917,2]
[362269026,1748134233708,-460.57,0.00021917,2]
[362269027,1748134233718,-430.0,0.00021917,2]
[362269029,1748134233727,-289.148166,0.00021917,2]
[362269031,1748134233737,-1613.47,0.00021917,2]
[362269033,1748134233746,-430.0,0.00021917,2]
[362269035,1748134233755,-1196.43,0.00021917,2]
[362269037,1748134233765,-758.27,0.00021917,2]
[362269039,1748134233774,-430.0,0.00021917,2]
[362269041,1748134233784,-280.0,0.00021917,2]
[362269043,1748134233793,-238.62658928,0.00021917,2]
[362269045,1748134233803,-430.0,0.00021917,2]
[362269047,1748134233812,-430.0,0.00021917,2]
[362269049,1748134233822,-155.0,0.00021917,2]
[362269050,1748134233831,-430.0,0.00021917,2]
[362269052,1748134233840,-430.0,0.00021917,2]
[362269053,1748134233850,-430.0,0.00021917,2]
[362269054,1748134233859,-430.0,0.00021917,2]
[362269055,1748134233868,-526.03,0.00021917,2]
[362269056,1748134233878,-430.0,0.00021917,2]
[362269057,1748134233887,-430.0,0.00021917,2]
[362269058,1748134233897,-569.11,0.00021917,2]
[362269059,1748134233906,-430.0,0.00021917,2]
[362269060,1748134233915,-430.0,0.00021917,2]
[362269061,1748134233924,-430.0,0.00021917,2]
[362269062,1748134233933,-490.0,0.00021917,2]
[362269063,1748134233942,-693.37,0.00021917,2]
[362269064,1748134233952,-430.0,0.00021917,2]
[362269065,1748134233964,-918.98,0.00021917,2]
[362269066,1748134233973,-430.0,0.00021917,2]
[362269067,1748134233983,-151.0,0.00021918,2]
[362269068,1748134233992,-162.680025,0.00021918,2]
[362269069,1748134234003,-199.65,0.00021999,2]
[362269070,1748134234012,-20010.31285458,0.00022,3]
[362269071,1748134234021,-212.51988043,0.00022,3]
[362269072,1748134234030,-160.0,0.00022,3]
[362269073,1748134234041,-151.0,0.00022,7]
[362269074,1748134234050,-151.0,0.00022,7]
[362269075,1748134234059,-151.0,0.00022,7]
[362269076,1748134234068,-151.0,0.00022,7]
[362269077,1748134234078,-162.305984,0.00022,7]
[362269078,1748134234087,-162.305984,0.00022,7]
[362269079,1748134234097,-151.0,0.00022,7]
[362269080,1748134234110,-151.0,0.00022,7]
[362269081,1748134234119,-176.0716068,0.00022,2]
[362269082,1748134234130,-153.0,0.00022,2]
[362269083,1748134234143,-272.3584202,0.00022,2]
[362269084,1748134234152,-151.0,0.00022,7]
[362269085,1748134234161,-153.0,0.00022,2]
[362269086,1748134234170,-153.0,0.00022,2]
[362269087,1748134234180,-153.0,0.00022,2]
[362269088,1748134234190,-153.0,0.00022,2]
[362269089,1748134234199,-151.0,0.00022,7]
[362269090,1748134234208,-151.0,0.00022,7]
[362269091,1748134234218,-151.0,0.00022,7]
[362269092,1748134234227,-510.790983,0.00022,2]
[362269093,1748134234236,-510.790983,0.00022,2]
[362269094,1748134234246,-700.0,0.00022064,2]
[362269095,1748134234256,-1792.40969072,0.00022091,2]
[362269096,1748134234267,-186.594062,0.00022191,7]
[362269097,1748134234276,-151.0,0.00022191,7]
[362269098,1748134234285,-151.0,0.00022191,7]
[362269099,1748134234295,-151.0,0.00022191,7]
[362269100,1748134234304,-430.0,0.00022191,2]
[362269101,1748134234313,-430.0,0.00022191,2]
[362269102,1748134234323,-195.33,0.00022191,2]
[362269103,1748134234332,-151.0,0.00022191,7]
[362269104,1748134234342,-151.0,0.00022191,7]